Cogmind - Beta 16 @@@ ROGUE MODE // 2025.10.26 @ 14:29:25 Player: KeKe Result: Destroyed self with Mini Grenade Launcher Performance ------------- Evolutions (0) 0 Regions Visited (2) 400 Robots Destroyed (29) 145 Value Destroyed (945) 945 Prototype IDs (1) 20 Alien Tech Used (0) 0 Bonus (-134) -134 TOTAL SCORE: 1376 Bonus ------- Follower Combat Kills 63 Friendly Fire -197 Cogmind --------- Core Integrity 0/250 Matter 14/300 Energy 100/100 System Corruption 2% Temperature Cool (0) Movement Core (1400) Ox27 Location -10/Subcaves Parts ------- > --- POWER (1) -------- (None) > --- PROPULSION (2) --- (None) > --- UTILITY (2) ------ Huge Storage Unit V3-11A's Pendant > --- WEAPON (2) ------- Mini Grenade Launcher > --- INVENTORY (25) --- Heat Sink Light Armor Plating Light Armor Plating Spread Laser Spread Laser Spread Laser Spread Laser EMP Blaster EMP Blaster EMP Blaster EMP Blaster Dirty Datajack (20) Datajack Peak State ------------ > --- POWER ------------ Ion Engine > --- PROPULSION ------- Wheel Compact Wheel > --- UTILITY ---------- Huge Storage Unit Light Armor Plating > --- WEAPON ----------- Spread Laser Spread Laser > --- INVENTORY -------- Compact Wheel Light Armor Plating Light Armor Plating Spread Laser Spread Laser EMP Blaster EMP Blaster EMP Blaster EMP Blaster Mini Grenade Launcher Mini Grenade Launcher Datajack [Rating: 11] Favorites ----------- Power Ion Engine Engine Ion Engine Propulsion Compact Wheel Treads Light Treads Leg Aluminum Leg Wheel Compact Wheel Utility Huge Storage Unit Device V3-11A's Pendant Storage Huge Storage Unit Protection Light Armor Plating Weapon Mini Grenade Launcher Energy Gun Spread Laser Ballistic Gun Assault Rifle Launcher Mini Grenade Launcher Build | -11 -10 -10 ------- Run | Yrd Mat Sub Slots Evolved . | . . . Power . | . . . Propulsion . | . . . Utility . | . . . Weapon . | . . . Parts Attached 22 | . 16 6 Power 1 | . 1 . Engine 1 | . 1 . Core . | . . . Reactor . | . . . Propulsion 6 | . 5 1 Treads 2 | . 2 . Leg . | . . . Wheel 4 | . 3 1 Hover . | . . . Flight . | . . . Utility 7 | . 5 2 Device 1 | . . 1 Storage 2 | . 2 . Processor . | . . . Hackware . | . . . Protection 4 | . 3 1 Artifact . | . . . Weapon 8 | . 5 3 Energy Gun 2 | . 2 . Energy Cannon . | . . . Ballistic Gun 1 | . 1 . Ballistic Cannon . | . . . Launcher 5 | . 2 3 Special Weapon . | . . . Impact Weapon . | . . . Slashing Weapon . | . . . Piercing Weapon . | . . . Special Melee Weapon . | . . . Unidentified Prototypes 1 | . . 1 Parts Lost 10 | . 5 5 Power 2 | . 1 1 Propulsion 4 | . 1 3 Utility 2 | . 2 . Weapon 2 | . 1 1 Highest Loss Streak 3 | . 3 2 To Critical Strikes . | . . . Average Backups 12 | . 6 12 Power . | . . . Propulsion . | . 1 . Utility 2 | . 2 2 Weapon 7 | . 1 8 Tool/Special . | . . . Unused Backups 12 | . 6 6 Power . | . . . Propulsion 4 | . 4 . Utility 3 | . 2 1 Weapon 3 | . . 3 Tool/Special 2 | . . 2 Average Slot Usage (%) 59 | . 95 55 Engine 2 | . 14 1 Wheel 7 | . 20 6 Device 10 | . . 12 Storage 14 | . 14 14 Protection 3 | . 12 2 Energy Gun 1 | . 6 . Ballistic Gun 1 | . 17 . Launcher 16 | . . 18 Peak Build Rating 11 | . 11 11 Average Rating 8 | . 7 9 On Entrance 7 | 6 6 11 Avg Prop Armor Cover (%) . | . . . Naked Turns . | . . . Heaviest Build 96 | 13 96 96 Greatest Support 40 | 20 40 26 Greatest Overweight (x) 27 | . 5 27 Average Overweight (x) 7 | . 1 8 Largest Inventory Capacity 25 | . 25 25 Average Capacity 24 | . 20 25 Most Carried 13 | . 12 13 Average Carried 12 | . 6 12 Final Capacity 25 | 8 25 25 Final Carried 13 | 6 12 13 Class Distribution -------------------- 100% | Mutant Dominant Class ---------------- Mutant | -10/Materials Mutant | -10/Subcaves Resources | -11 -10 -10 ----------- Run | Yrd Mat Sub Matter Collected 921 | 200 397 324 Remotely . | . . . Salvage Created 1174 | . 949 225 Parts 62 | . 48 14 Haulers Intercepted . | . . . Recyclers Shooed 4 | . 4 . Parts Field Recycled . | . . . Retrieved Matter . | . . . Parts Self-Destructed 1 | . . 1 Prevented . | . . . Parts Restored . | . . . Kills | -11 -10 -10 ------- Run | Yrd Mat Sub Combat Hostiles Destroyed 24 | . 17 7 Guns 17 | . 17 . AOE 7 | . . 7 Classes Destroyed 5 | . 4 1 Worker 1 | . 1 . Recycler 3 | . 3 . Operator 1 | . 1 . Grunt 17 | . 17 . Subdweller 7 | . . 7 Best Kill Streak 5 | . 4 5 Combat Bots Only 5 | . 4 5 Max Kills in Single Turn 3 | . 2 3 Gunslinging . | . . . Exploded 3 | . . 3 Melee . | . . . Uniques/NPCs Destroyed . | . . . Combat | -11 -10 -10 -------- Run | Yrd Mat Sub Hostile Shots Fired 112 | . 81 31 Missed 28 | . 16 12 Hits 84 | . 65 19 Projectile 84 | . 65 19 Critical Strikes 1 | . 1 . Damage Taken 1316 | . 789 527 Core 254 | . 130 124 Absorbed by Shields . | . . . Core Remaining (%) 100 | 100 . . Volleys Fired 112 | . 79 33 Largest 2 | . 2 2 Hottest 130 | . 130 66 Shots Fired 172 | . 128 44 Gun 128 | . 128 . Cannon . | . . . Launcher 44 | . . 44 Special . | . . . Kinetic 102 | . 102 . Thermal 26 | . 26 . Explosive 40 | . . 40 Electromagnetic 4 | . . 4 Robot Hit Streak 10 | . 10 10 Robot Miss Streak 5 | . 5 2 Penetration Max . | . . . Secondary Targets 2 | . 2 . Max Gunslinging Chain 1 | . 1 . Shots Hit Robots 107 | . 96 11 Core Hits 86 | . 65 21 Critical Kills . | . . . Critical Parts Destroyed 1 | . 1 . Critical Strikes 1 | . 1 . Destroy 1 | . 1 . Melee Attacks . | . . . Impact . | . . . Slashing . | . . . Piercing . | . . . Sneak Attacks . | . . . Combat Hostiles . | . . . Follow-up Attacks . | . . . Damage Inflicted 2831 | . 1086 1745 Guns 1086 | . 1086 . Cannons . | . . . Explosions 1745 | . . 1745 Melee . | . . . Ramming . | . . . Kinetic 830 | . 830 . Thermal 256 | . 256 . Explosive 1681 | . . 1681 Electromagnetic 64 | . . 64 Impact . | . . . Slashing . | . . . Piercing . | . . . Highest Corruption 2 | . 2 2 Average Corruption 2 | . 2 2 Corruption Purged . | . . . Corruption Blocked . | . . . Effects 83 | . 4 79 Message Errors 17 | . . 17 Matter Fused 16 | . 1 15 Heat Flow Errors 13 | . 1 12 Energy Discharges 15 | . . 15 Parts Rejected 1 | . . 1 Data Loss (minor) 8 | . 1 7 Data Loss (major) 7 | . 1 6 Misfires 1 | . . 1 Alerts 5 | . . 5 Overload Shots . | . . . Overflow Damage . | . . . Projectiles . | . . . Explosions . | . . . Melee . | . . . Knockbacks . | . . . Impact . | . . . Kinetic . | . . . Secondary . | . . . Self-Inflicted Damage 69 | . . 69 Shots 3 | . . 3 Rammed . | . . . Targets Rammed . | . . . Kicked . | . . . Crushed . | . . . Highest Temperature 399 | . 399 221 Average Temperature 105 | . 109 89 Received Heat Transfer 522 | . 462 60 Effects 4 | . 4 . Shutdowns 2 | . 2 . Interference 2 | . 2 . Siege Activations . | . . . Martial Activations . | . . . Shielding Activations . | . . . Robots Disrupted . | . . . Combat Hostiles . | . . . Robots Corrupted . | . . . Combat Hostiles . | . . . Parts Fried . | . . . Impact Corruptions . | . . . Robots Melted . | . . . Combat Hostiles . | . . . Parts Melted . | . . . Heat Transferred 315 | . 315 . Parts Sabotaged . | . . . Parts Stolen . | . . . Parts Stripped . | . . . Power Chain Reactions . | . . . Alert | -11 -10 -10 ------- Run | Yrd Mat Sub Maximum Alert Level . | . . . Low Security (%) 100 | . 100 . Level 1 . | . . . Level 2 . | . . . Level 3 . | . . . Level 4 . | . . . Level 5 . | . . . High Security . | . . . Max Security . | . . . Peak Influence 185 | . 185 . Initial . | . . . Average 70 | . 70 . Influence Increases 509 | . 471 38 Destroy 0b10 Robot/C 360 | . 340 20 Destroy 0b10 Robot/NC 25 | . 25 . Destroy Leader 90 | . 90 . Allied During Kill 3 | . . 3 Destroy Structure 1 | . 1 . Lose Combat Pursuer 30 | . 15 15 Influence Decreases 509 | . 318 191 Entered New Map 74 | . . 74 Time Decay 376 | . 268 108 Lost Part 59 | . 50 9 Squads Dispatched 5 | . 5 . Investigation 2 | . 2 . Extermination . | . . . Reinforcement 3 | . 3 . Assault . | . . . Garrison . | . . . Intercept . | . . . Searches Triggered . | . . . Construction Impeded . | . . . Haulers Reinforced . | . . . Active Scanning Responses . | . . . Cargo Convoy Interrupts . | . . . Stealth | -11 -10 -10 --------- Run | Yrd Mat Sub Distress Signals . | . . . Communications Jammed . | . . . Distress Signals . | . . . Times Spotted 41 | . 25 16 Peak Tracking Total 3 | . 3 3 Tactical Retreats 2 | . 1 1 Traps | -11 -10 -10 ------- Run | Yrd Mat Sub Traps Triggered 4 | . 3 1 Indirectly . | . . . Trap Hack Attempts . | . . . Triggered . | . . . Disarmed . | . . . Reprogrammed . | . . . Reused . | . . . Traps Extracted . | . . . Installed . | . . . Triggered . | . . . Machines | -11 -10 -10 ---------- Run | Yrd Mat Sub Machines Disabled . | . . . Max in Single Turn . | . . . Machines Repaired . | . . . Machines Dismantled . | . . . Machines Sabotaged . | . . . Overloaded Fab Kills . | . . . Hacking | -11 -10 -10 --------- Run | Yrd Mat Sub Machines Accessed . | . . . Terminals . | . . . Fabricators . | . . . Repair Stations . | . . . Recycling Units . | . . . Scanalyzers . | . . . Garrison Access . | . . . Total Hacks . | . . . Successful . | . . . Failed . | . . . Catastrophic . | . . . Database Lockouts . | . . . Manual . | . . . Terminals . | . . . Fabricators . | . . . Repair Stations . | . . . Recycling Units . | . . . Scanalyzers . | . . . Garrison Access . | . . . Terminal Hacks . | . . . Fabricator Hacks . | . . . Repair Station Hacks . | . . . Recycling Unit Hacks . | . . . Scanalyzer . | . . . Garrison Access Hacks . | . . . Unauthorized Hacks . | . . . Terminals . | . . . Fabricators . | . . . Repair Stations . | . . . Recycling Units . | . . . Scanalyzers . | . . . Garrison Access . | . . . Data Cores Recovered . | . . . Used . | . . . Hacking Detections . | . . . Full Trace Events . | . . . Feedback Events . | . . . Feedback Blocked . | . . . Robot Schematics Acquired . | . . . Robots Built . | . . . Authchips . | . . . Time . | . . . Total Robot Build Rating . | . . . Part Schematics Acquired . | . . . Parts Built . | . . . Authchips . | . . . Time . | . . . Total Part Build Rating . | . . . Part Studies Acquired . | . . . Parts Repaired . | . . . Time . | . . . Parts Recycled . | . . . Recycled Matter . | . . . Retrieved Matter . | . . . Retrieved Components . | . . . Parts Scanalyzed . | . . . Part Schematics Acquired . | . . . Parts Damaged . | . . . Bothacking | -11 -10 -10 ------------ Run | Yrd Mat Sub Used RIF Installer . | . . . Robots Hacked . | . . . Non-combat . | . . . Combat . | . . . Robot Hacks Applied . | . . . Relay Couplers Released . | . . . Fabnet Peak Effective % . | . . . Robots Rewired . | . . . Allies Hacked . | . . . Hacks Repelled . | . . . Allies | -11 -10 -10 -------- Run | Yrd Mat Sub Total Allies 10 | . . 10 Largest Group 8 | . . 8 Highest-Rated Group 152 | . . 152 Highest-Rated Ally 19 | . . 19 Total Orders . | . . . Ally Attacks 18 | . . 18 Total Damage 293 | . . 293 Kills 2 | . . 2 Allies Corrupted . | . . . Allies Melted . | . . . Intel | -11 -10 -10 ------- Run | Yrd Mat Sub Active Infowar (turns) . | . . . Robot Analysis Total . | . . . Derelict Logs Recovered 2 | . . 2 Drone Launches . | . . . Drone Recoveries . | . . . Exploration | -11 -10 -10 ------------- Run | Yrd Mat Sub Turns Passed 7215 | . 708 6507 Spaces Moved 1976 | 1 290 1685 Core 294 | . . 294 Treads 75 | . 75 . Legs 1 | 1 . . Wheels 1606 | . 215 1391 Hover . | . . . Flight . | . . . Fastest Speed 105 | 120 105 135 Average Speed 340 | 120 131 377 Slowest Speed 1400 | 120 240 1400 Overloaded Moves . | . . . Propulsion Burnouts . | . . . Robots Hopped . | . . . Potential Cave-ins 3 | . . 3 Cave-ins Triggered . | . . . Exploration Rate (%) 45 | 2 58 75 Regions Visited 2 Branch Regions 1 Pre-discovered Areas 2 | . . 2 Known Exits Taken . | . . . Unknown Exits Taken 2 | 1 1 . Scrap Searched 3 | . . 3 Spaces Dug 94 | . . 94 Terrain Destroyed 280 | . . 280 Melee . | . . . Projectile . | . . . AOE 280 | . . 280 Terrain Rammed . | . . . Walls Destroyed . | . . . Machines Disabled . | . . . Actions | -11 -10 -10 --------- Run | Yrd Mat Sub Total 2286 | . 495 1791 Wait 150 | . 89 61 Move 1974 | . 289 1685 Hop . | . . . Pick Up 15 | . 14 1 Fast Attach 6 | . 4 2 Attach 5 | . 4 1 Detach 1 | . . 1 Swap 15 | . 8 7 Drop 8 | . 8 . Fire 112 | . 79 33 Melee . | . . . Ram . | . . . Kick . | . . . Crush . | . . . Escape Stasis . | . . . Rewire . | . . . Trap . | . . . Miscellaneous . | . . . Route ------- -11/Scrapyard -10/Materials (discovered 4 exits: [*Mat x2] / [*Min] / [*Sub]) -10/Subcaves (discovered 2 exits: [*Mat x2]) History --------- Turn | Location | Event 1 | -11/Scrapyard | Discovered new exit (range 0) 1 | -11/Scrapyard | Entered Materials 176 | -10/Materials | Discovered new exit (range 16) 309 | -10/Materials | Build established: Mutant 349 | -10/Materials | Discovered new exit (range 15) 471 | -10/Materials | Lost 3 parts (1p1n1u) 508 | -10/Materials | Discovered new exit (range 4) 622 | -10/Materials | Core integrity fell below 50% 687 | -10/Materials | Discovered new exit (range 6) 709 | -10/Materials | Entered Subcaves 720 | -10/Subcaves | Learned location of Zion (-7) 848 | -10/Subcaves | Ambushed by Subdwellers from Twisted Machinery 896 | -10/Subcaves | Discovered new exit (range 12) 1179 | -10/Subcaves | A swath of the cavern ceiling suddenly collapsed 1246 | -10/Subcaves | Discovered new exit (range 11) 1298 | -10/Subcaves | Met a Zionite searching for "candidates" 1402 | -10/Subcaves | Core integrity fell below 20% 1622 | -10/Subcaves | Visited triangular shrine 1633 | -10/Subcaves | Found Prototype Device 1633 | -10/Subcaves | Identified V3-11A's Pendant 1638 | -10/Subcaves | Befriended Subdweller 1698 | -10/Subcaves | Befriended Subdweller 1991 | -10/Subcaves | Ambushed by Subdweller buried in earth 1993 | -10/Subcaves | Befriended Subdweller 2052 | -10/Subcaves | Shifting Twisted Machinery released Flamer 2083 | -10/Subcaves | Shifting Twisted Machinery released Sub. Monowheel 3074 | -10/Subcaves | Ambushed by Subdweller buried in earth 3078 | -10/Subcaves | Befriended Subdweller 3078 | -10/Subcaves | Befriended Subdweller 4726 | -10/Subcaves | Ambushed by Subdweller buried in earth 4728 | -10/Subcaves | Befriended Subdweller 4813 | -10/Subcaves | Befriended Subdweller 6523 | -10/Subcaves | Befriended Subdweller 6528 | -10/Subcaves | Befriended Subdweller 6534 | -10/Subcaves | Learned 2 Materials zone layouts 7188 | -10/Subcaves | Befriended Subdweller 7216 | -10/Subcaves | Destroyed self with Mini Grenade Launcher Last Messages --------------- 06954_ SW-LMF(u) deconstructs Twisted Machinery. 06956_ N2-M6Y(u) builds Twisted Machinery. 06956_ SW-LMF(u) deconstructs Twisted Machinery. 06958_ N2-M6Y(u) builds Twisted Machinery. 06958_ SW-LMF(u) deconstructs Twisted Machinery. 06960_ N2-M6Y(u) builds Twisted Machinery. 06960_ SW-LMF(u) deconstructs Twisted Machinery. 06962_ N2-M6Y(u) builds Twisted Machinery. 06962_ SW-LMF(u) deconstructs Twisted Machinery. 06964_ N2-M6Y(u) builds Twisted Machinery. 06964_ SW-LMF(u) deconstructs Twisted Machinery. 06966_ N2-M6Y(u) builds Twisted Machinery. 06966_ SW-LMF(u) deconstructs Twisted Machinery. 06989_ System corrupted: Heat flow error (+127). 07061_ System corrupted: Energy discharge (-28). 07085_ System corrupted: IFF burst signal emitted. 07109_ LDJT9M6KOQMG#4HK0Y4GLU7NFK 07188_ PE-G18(R): "WHATUP!" 07216_ System corrupted: FCS attempts to trigger Mni. Grenade Launcher. 07216_ System corrupted: Mni. Grenade Launcher misfires. Map ----- +----------------------------------------------------+ | ## ##???????????????## ###?????????????????? | | # ##?????????????????##????????????????????? | | ### ###????????????????????????????????????????? | | ?# ##?????????????????????????????????????????? | | ?# ##????#???????????????????????????????????? | | ?# ##?? #???????????????????????????????????? | | ?# ## #???????????????????????????????????? | | ?# #???????????????????????????????????? | | ?##### #???????????????????????????????????? | | ######" " ##???????????????????????????????????? | | #"" """####????????????????????????????????????? | | # "" ""###?????????????????????????????????????? | | ## "" "##"######????????????????????????????????? | | ?#" ### " ""#????????????????????????????????? | | ?# ### " #?????????###?????????????????????? | | ## ### """" #????????? #?????????????????????? | | #" # "" " ###?????? "##????????????????????? | | ##" " ####### ""#????????????????????? | | ?# " ""##???????????????????? | | # # # " """##??????????????????? | | ### #### ## #""""##?????????????????? | | ?# #### ## ## ####?? ""##????????????????? | | ?## #?## # ## ###??? ""## ?????????????? | | ??# #?# ## ## ####""""""??????????????? | | ?# #?# ### ## R #R R"#????????????????? | | ?# #?##### RR @RRR"###????????????????? | | ?## "# ###?????### "####??????????????????? | | ??# #######????????# # ###?????????????????????? | | ??####??????????????##?##????????????????????????? | | ?????????????????????????????????????????????????? | | ?????????????????????????????????????????????????? | | ?????????????????????????????????????????????????? | | ?????????????????????????????????????????????????? | | ?????????????????????????????????????????????????? | | ?????????????????????????????????????????????????? | | ?????????????????????????????????????????????????? | | ?????????????????????????????????????????????????? | | ?????????????????????????????????????????????????? | | ?????????????????????????????????????????????????? | | ?????????????????????????????????????????????????? | | ?????????????????????????????????????????????????? | | ?????????????????????????????????????????????????? | | ??####?###?????????????###???????????????????????? | | ?## ### ##????????#### ##??????????????????????? | | ?# ##??????## #??????????????????????? | | ?# #???#### #???????????????????????? | | ?#### #??## #####???????????????????????? | | ????## #### #???????????????????????????? | | ????# ## ####???????????????????????????? | | ????# ] ] #??????????????????????????????? | +----------------------------------------------------+ Best States ------------- Heat Dissipation 25 Energy Generation 10 Energy Capacity 250 Matter Stores 300 Matter Capacity 300 Sight Range 16 Terrain Scan Density 10 Armor Coverage 150 Evasion (%) 40 Recoil Reduction 2 Item Schematics ----------------- None Robot Schematics ------------------ None Fabricated ------------ Nothing Repaired ---------- Nothing Studied --------- None Alien Tech Used ----------------- None Achievements -------------- None Challenges ------------ None Game ------ Seed TargetCatalystScanner Manual? 0 Play Time 00:24:12 Cumulative 129.7 hours Start 2025.10.26 @ 13:31:59 End 2025.10.26 @ 14:29:25 Sessions 1 Manual Loads 0 Difficulty Rogue Special Mode None Game No. 131 Rogue 131 Adventurer 0 Explorer 0 Win Type - Total 1 Types 1/0/0/0/0/0/0/0/0/0 Lore% 61 Gallery% 51 Achievement% 35 Wizard Run 0 Options --------- Layout 0 ASCII 0 Keyboard 0 Movement Mouse Keybinds 0 Fullscreen 2 Font 18/X11 Map View 76x50 Zoom Use 0% Tactical HUD 1 Map Filters NONE Filters NONE Steam 1 RUN: 660759f5-f0e0-44fe-bab9-41d16faa30d4